[Event "January 9 Late 2024"]
[Site "https://www.chess.com"]
[Date "2024.01.09"]
[Round "8"]
[White "Bok, Benjamin"]
[Black "Badmatsyrenov, Oleg"]
[Result "0-1"]
[Board "24"]
[TimeControl "180+1"]
[WhiteFideId "1017063"]
[BlackFideId "24115762"]
[WhiteElo "2937"]
[BlackElo "2799"]
[WhiteTeam "NED"]
[BlackTeam "FID"]
[WhiteClock "0:00:00"]
[BlackClock "0:00:04"]

1. d4 {[%clk 0:03:00]}  Nf6 {[%clk 0:02:58]} 2. c4 {[%clk 0:03:01]}  b6 {[%clk 0:02:58]} 3. Nc3 {[%clk 0:03:01]}  Bb7 {[%clk 0:02:58]} 4. Qc2 {[%clk 0:03:01]}  d5 {[%clk 0:02:57]} 5. cxd5 {[%clk 0:03:02]}  Nxd5 {[%clk 0:02:57]} 6. Nf3 {[%clk 0:03:02]}  e6 {[%clk 0:02:56]} 7. e4 {[%clk 0:03:02]}  Nxc3 {[%clk 0:02:55]} 8. bxc3 {[%clk 0:03:03]}  Be7 {[%clk 0:02:56]} 9. Bb5+ {[%clk 0:03:03]}  c6 {[%clk 0:02:56]} 10. Bd3 {[%clk 0:03:03]}  c5 {[%clk 0:02:57]} 11. O-O {[%clk 0:02:55]}  O-O {[%clk 0:02:56]} 12. d5 {[%clk 0:02:41]}  exd5 {[%clk 0:02:45]} 13. exd5 {[%clk 0:02:42]}  Qxd5 {[%clk 0:02:45]} 14. Bxh7+ {[%clk 0:02:41]}  Kh8 {[%clk 0:02:45]} 15. Rd1 {[%clk 0:02:42]}  Qh5 {[%clk 0:02:43]} 16. Be4 {[%clk 0:02:41]}  Bc6 {[%clk 0:01:47]} 17. Bf4 {[%clk 0:02:16]}  Bf6 {[%clk 0:01:40]} 18. h3 {[%clk 0:01:38]}  Re8 {[%clk 0:01:34]} 19. Bxc6 {[%clk 0:01:27]}  Nxc6 {[%clk 0:01:33]} 20. Rd7 {[%clk 0:01:15]}  Rad8 {[%clk 0:01:07]} 21. Rad1 {[%clk 0:01:14]}  Nd4 {[%clk 0:00:47]} 22. Qa4 {[%clk 0:00:41]}  b5 {[%clk 0:00:27]} 23. Qxa7 {[%clk 0:00:26]}  Ne2+ {[%clk 0:00:24]} 24. Kh2 {[%clk 0:00:26]}  Nxf4 {[%clk 0:00:25]} 25. Rxd8 {[%clk 0:00:27]}  Bxd8 {[%clk 0:00:19]} 26. Qd7 {[%clk 0:00:14]}  Rg8 {[%clk 0:00:15]} 27. Re1 {[%clk 0:00:10]}  Ne6 {[%clk 0:00:14]} 28. Re5 {[%clk 0:00:10]}  Qh6 {[%clk 0:00:13]} 29. Qd5 {[%clk 0:00:09]}  Bc7 {[%clk 0:00:12]} 30. g3 {[%clk 0:00:07]}  Bxe5 {[%clk 0:00:13]} 31. Nxe5 {[%clk 0:00:08]}  Rf8 {[%clk 0:00:12]} 32. Kg2 {[%clk 0:00:04]}  Kg8 {[%clk 0:00:13]} 33. Nc6 {[%clk 0:00:04]}  Qf6 {[%clk 0:00:12]} 34. h4 {[%clk 0:00:04]}  g6 {[%clk 0:00:11]} 35. h5 {[%clk 0:00:04]}  Kg7 {[%clk 0:00:11]} 36. hxg6 {[%clk 0:00:04]}  fxg6 {[%clk 0:00:09]} 37. f4 {[%clk 0:00:04]}  Rf7 {[%clk 0:00:08]} 38. Ne5 {[%clk 0:00:05]}  Ra7 {[%clk 0:00:08]} 39. a3 {[%clk 0:00:02]}  Nf8 {[%clk 0:00:06]} 40. Ng4 {[%clk 0:00:02]}  Qe7 {[%clk 0:00:05]} 41. Ne5 {[%clk 0:00:02]}  Qb7 {[%clk 0:00:05]} 42. Nc6 {[%clk 0:00:01]}  Rxa3 {[%clk 0:00:01]} 43. Qe5+ {[%clk 0:00:01]}  Kh7 {[%clk 0:00:02]} 44. Qd6 {[%clk 0:00:01]}  Qf7 {[%clk 0:00:02]} 45. Kh2 {[%clk 0:00:01]}  Ra2+ {[%clk 0:00:02]} 46. Kg1 {[%clk 0:00:01]}  Ra1+ {[%clk 0:00:02]} 47. Kf2 {[%clk 0:00:01]}  Qa2+ {[%clk 0:00:03]} 48. Kf3 {[%clk 0:00:02]}  Qf7 {[%clk 0:00:03]} 49. Ne5 {[%clk 0:00:02]}  Qb7+ {[%clk 0:00:02]} 50. Kg4 {[%clk 0:00:02]}  Qg7 {[%clk 0:00:03]} 51. Nc6 {[%clk 0:00:01]}  Rh1 {[%clk 0:00:04]} 52. Ne5 {[%clk 0:00:01]}  Qb7 {[%clk 0:00:03]} 53. Qxc5 {[%clk 0:00:01]}  Qg7 {[%clk 0:00:04]} 54. Nf3 {[%clk 0:00:00]}  Nd7 {[%clk 0:00:04]} 0-1

[Event "January 9 Late 2024"]
[Site "https://www.chess.com"]
[Date "2024.01.09"]
[Round "8"]
[White "Aravindh, Chithambaram VR."]
[Black "Wafa, Hamed"]
[Result "1-0"]
[Board "25"]
[TimeControl "180+1"]
[WhiteFideId "5072786"]
[BlackFideId "10628452"]
[WhiteElo "2932"]
[BlackElo "2797"]
[WhiteTeam "IND"]
[BlackTeam "EGY"]
[WhiteClock "0:00:04"]
[BlackClock "0:00:00"]

1. e4 {[%clk 0:03:00]}  c5 {[%clk 0:02:57]} 2. Nf3 {[%clk 0:03:00]}  a6 {[%clk 0:02:57]} 3. b3 {[%clk 0:02:59]}  Nc6 {[%clk 0:02:55]} 4. Bb2 {[%clk 0:02:59]}  d6 {[%clk 0:02:54]} 5. d4 {[%clk 0:02:59]}  cxd4 {[%clk 0:02:52]} 6. Nxd4 {[%clk 0:03:00]}  Bd7 {[%clk 0:02:48]} 7. c4 {[%clk 0:02:58]}  Nf6 {[%clk 0:02:45]} 8. Nc3 {[%clk 0:02:57]}  Nxd4 {[%clk 0:02:41]} 9. Qxd4 {[%clk 0:02:57]}  g6 {[%clk 0:02:41]} 10. Be2 {[%clk 0:02:53]}  Bg7 {[%clk 0:02:41]} 11. O-O {[%clk 0:02:53]}  O-O {[%clk 0:02:41]} 12. Rad1 {[%clk 0:02:52]}  Bc6 {[%clk 0:02:20]} 13. Qe3 {[%clk 0:02:50]}  Qc7 {[%clk 0:02:15]} 14. Ba1 {[%clk 0:02:45]}  b5 {[%clk 0:02:07]} 15. Nd5 {[%clk 0:02:39]}  Bxd5 {[%clk 0:02:01]} 16. cxd5 {[%clk 0:02:36]}  Nd7 {[%clk 0:01:50]} 17. Rc1 {[%clk 0:02:33]}  Qa7 {[%clk 0:01:38]} 18. Qxa7 {[%clk 0:02:20]}  Rxa7 {[%clk 0:01:39]} 19. Bxg7 {[%clk 0:02:20]}  Kxg7 {[%clk 0:01:38]} 20. b4 {[%clk 0:02:20]}  a5 {[%clk 0:01:21]} 21. bxa5 {[%clk 0:02:15]}  Nc5 {[%clk 0:01:10]} 22. Bxb5 {[%clk 0:02:03]}  Rxa5 {[%clk 0:01:10]} 23. Rxc5 {[%clk 0:01:51]}  dxc5 {[%clk 0:01:04]} 24. a4 {[%clk 0:01:52]}  g5 {[%clk 0:00:31]} 25. Rc1 {[%clk 0:01:50]}  Rc8 {[%clk 0:00:31]} 26. g3 {[%clk 0:01:36]}  g4 {[%clk 0:00:30]} 27. Bd7 {[%clk 0:01:36]}  Rc7 {[%clk 0:00:28]} 28. Bc6 {[%clk 0:01:31]}  Kf6 {[%clk 0:00:28]} 29. Kf1 {[%clk 0:01:25]}  Ke5 {[%clk 0:00:29]} 30. Rc4 {[%clk 0:01:18]}  e6 {[%clk 0:00:18]} 31. Ke2 {[%clk 0:01:18]}  Rc8 {[%clk 0:00:19]} 32. Ke3 {[%clk 0:01:16]}  Rb8 {[%clk 0:00:18]} 33. Bb5 {[%clk 0:01:10]}  exd5 {[%clk 0:00:18]} 34. exd5 {[%clk 0:01:10]}  f5 {[%clk 0:00:19]} 35. Rxc5 {[%clk 0:01:09]}  Rd8 {[%clk 0:00:12]} 36. d6+ {[%clk 0:01:06]}  Kf6 {[%clk 0:00:11]} 37. Rd5 {[%clk 0:01:02]}  Raa8 {[%clk 0:00:05]} 38. Kf4 {[%clk 0:01:00]}  Ke6 {[%clk 0:00:05]} 39. Rxf5 {[%clk 0:00:32]}  Rxd6 {[%clk 0:00:04]} 40. Bc4+ {[%clk 0:00:28]}  Ke7 {[%clk 0:00:03]} 41. Bb5 {[%clk 0:00:14]}  Rd4+ {[%clk 0:00:04]} 42. Kg5 {[%clk 0:00:15]}  Rg8+ {[%clk 0:00:03]} 43. Kh4 {[%clk 0:00:15]}  Rd6 {[%clk 0:00:03]} 44. Kh5 {[%clk 0:00:11]}  Rgg6 {[%clk 0:00:02]} 45. Bc4 {[%clk 0:00:09]}  Rd4 {[%clk 0:00:01]} 46. Rf7+ {[%clk 0:00:05]}  Kd6 {[%clk 0:00:02]} 47. Rxh7 {[%clk 0:00:05]}  Rf6 {[%clk 0:00:03]} 48. Bb5 {[%clk 0:00:04]}  Rxf2 {[%clk 0:00:00]} 49. Kg5 {[%clk 0:00:04]} 1-0

[Event "January 9 Late 2024"]
[Site "https://www.chess.com"]
[Date "2024.01.09"]
[Round "8"]
[White "Melkumyan, Hrant"]
[Black "Weetik, Vjacheslav"]
[Result "1-0"]
[Board "30"]
[TimeControl "180+1"]
[WhiteFideId "13302485"]
[BlackFideId "4153472"]
[WhiteElo "2892"]
[BlackElo "2738"]
[WhiteTeam "ARM"]
[BlackTeam "RUS"]
[WhiteClock "0:02:21"]
[BlackClock "0:00:57"]

1. e4 {[%clk 0:03:00]}  c6 {[%clk 0:02:58]} 2. Nf3 {[%clk 0:03:00]}  d5 {[%clk 0:02:58]} 3. d3 {[%clk 0:03:01]}  Bg4 {[%clk 0:02:49]} 4. h3 {[%clk 0:03:01]}  Bh5 {[%clk 0:02:45]} 5. g4 {[%clk 0:03:00]}  Bg6 {[%clk 0:02:45]} 6. Qe2 {[%clk 0:03:00]}  dxe4 {[%clk 0:02:38]} 7. dxe4 {[%clk 0:03:00]}  e5 {[%clk 0:02:38]} 8. Nc3 {[%clk 0:02:54]}  Nd7 {[%clk 0:02:37]} 9. h4 {[%clk 0:02:50]}  h6 {[%clk 0:02:32]} 10. Bh3 {[%clk 0:02:48]}  Qc7 {[%clk 0:02:26]} 11. Bd2 {[%clk 0:02:48]}  Ngf6 {[%clk 0:02:16]} 12. O-O-O {[%clk 0:02:45]}  Bb4 {[%clk 0:02:13]} 13. h5 {[%clk 0:02:33]}  Bh7 {[%clk 0:01:38]} 14. g5 {[%clk 0:02:27]}  Nxh5 {[%clk 0:01:34]} 15. Bxd7+ {[%clk 0:02:24]}  Qxd7 {[%clk 0:01:34]} 16. Rxh5 {[%clk 0:02:24]}  Qe6 {[%clk 0:01:27]} 17. gxh6 {[%clk 0:02:21]}  Bxc3 {[%clk 0:01:00]} 18. Bxc3 {[%clk 0:02:20]}  Qxa2 {[%clk 0:00:59]} 19. Rxe5+ {[%clk 0:02:20]}  Kf8 {[%clk 0:00:57]} 20. hxg7+ {[%clk 0:02:21]} 1-0

[Event "January 9 Late 2024"]
[Site "https://www.chess.com"]
[Date "2024.01.09"]
[Round "8"]
[White "Khatoev, Eduard"]
[Black "Kuzubov, Yuriy"]
[Result "1/2-1/2"]
[Board "32"]
[TimeControl "180+1"]
[WhiteFideId "24145076"]
[BlackFideId "14112906"]
[WhiteElo "2726"]
[BlackElo "2885"]
[WhiteTeam "RUS"]
[BlackTeam "UKR"]
[WhiteClock "0:00:16"]
[BlackClock "0:00:06"]

1. Nf3 {[%clk 0:03:00]}  d5 {[%clk 0:02:59]} 2. e3 {[%clk 0:03:01]}  g6 {[%clk 0:02:58]} 3. d4 {[%clk 0:03:00]}  c5 {[%clk 0:02:54]} 4. dxc5 {[%clk 0:03:00]}  Bg7 {[%clk 0:02:53]} 5. c4 {[%clk 0:02:59]}  Nf6 {[%clk 0:02:53]} 6. Nc3 {[%clk 0:02:58]}  Be6 {[%clk 0:02:50]} 7. Qa4+ {[%clk 0:02:55]}  Nc6 {[%clk 0:02:41]} 8. Nd4 {[%clk 0:02:53]}  O-O {[%clk 0:02:29]} 9. Nxe6 {[%clk 0:02:51]}  fxe6 {[%clk 0:02:30]} 10. cxd5 {[%clk 0:02:50]}  Nxd5 {[%clk 0:02:14]} 11. Nxd5 {[%clk 0:02:46]}  Qxd5 {[%clk 0:02:10]} 12. Qb3 {[%clk 0:02:46]}  Qf5 {[%clk 0:01:58]} 13. f4 {[%clk 0:02:28]}  Kh8 {[%clk 0:01:55]} 14. Qxb7 {[%clk 0:02:27]}  Qxc5 {[%clk 0:01:53]} 15. Qb5 {[%clk 0:02:27]}  Qd6 {[%clk 0:01:49]} 16. Qd3 {[%clk 0:02:23]}  Qb4+ {[%clk 0:01:41]} 17. Bd2 {[%clk 0:02:15]}  Qxb2 {[%clk 0:01:40]} 18. Rc1 {[%clk 0:02:15]}  Rfd8 {[%clk 0:01:24]} 19. Qc2 {[%clk 0:02:14]}  Rab8 {[%clk 0:01:23]} 20. a4 {[%clk 0:02:13]}  Qxc2 {[%clk 0:00:57]} 21. Rxc2 {[%clk 0:02:13]}  Nb4 {[%clk 0:00:53]} 22. Rc5 {[%clk 0:02:07]}  h6 {[%clk 0:00:35]} 23. Rb5 {[%clk 0:02:04]}  Nc2+ {[%clk 0:00:33]} 24. Ke2 {[%clk 0:02:04]}  Rbc8 {[%clk 0:00:31]} 25. Rb7 {[%clk 0:02:02]}  Na3 {[%clk 0:00:24]} 26. Ba5 {[%clk 0:01:55]}  Rc2+ {[%clk 0:00:21]} 27. Kf3 {[%clk 0:01:54]}  Rd1 {[%clk 0:00:21]} 28. Rb8+ {[%clk 0:01:50]}  Kh7 {[%clk 0:00:21]} 29. Rd8 {[%clk 0:01:49]}  Ra1 {[%clk 0:00:20]} 30. Ra8 {[%clk 0:01:47]}  Rcc1 {[%clk 0:00:18]} 31. Kf2 {[%clk 0:01:46]}  Nc4 {[%clk 0:00:18]} 32. Bxc4 {[%clk 0:01:38]}  Rxh1 {[%clk 0:00:18]} 33. Bb5 {[%clk 0:01:38]}  Rxh2 {[%clk 0:00:17]} 34. Rxa7 {[%clk 0:01:37]}  Ra2+ {[%clk 0:00:17]} 35. Kf3 {[%clk 0:01:37]}  Bf6 {[%clk 0:00:17]} 36. Bb4 {[%clk 0:01:36]}  Rhxg2 {[%clk 0:00:15]} 37. Bxe7 {[%clk 0:01:34]}  Bxe7 {[%clk 0:00:15]} 38. Rxe7+ {[%clk 0:01:34]}  Kg8 {[%clk 0:00:15]} 39. Bc4 {[%clk 0:01:33]}  Rxa4 {[%clk 0:00:15]} 40. Bxe6+ {[%clk 0:01:33]}  Kf8 {[%clk 0:00:15]} 41. Rf7+ {[%clk 0:01:33]}  Ke8 {[%clk 0:00:15]} 42. Kxg2 {[%clk 0:01:32]}  Re4 {[%clk 0:00:14]} 43. Bd5 {[%clk 0:01:31]}  Rxe3 {[%clk 0:00:14]} 44. Rg7 {[%clk 0:01:29]}  g5 {[%clk 0:00:11]} 45. fxg5 {[%clk 0:01:29]}  hxg5 {[%clk 0:00:09]} 46. Rxg5 {[%clk 0:01:30]}  Ke7 {[%clk 0:00:09]} 47. Kf2 {[%clk 0:01:29]}  Rc3 {[%clk 0:00:09]} 48. Rg6 {[%clk 0:01:28]}  Ra3 {[%clk 0:00:09]} 49. Be4 {[%clk 0:01:17]}  Kf7 {[%clk 0:00:09]} 50. Rc6 {[%clk 0:01:15]}  Ke7 {[%clk 0:00:08]} 51. Rh6 {[%clk 0:01:14]}  Kf7 {[%clk 0:00:08]} 52. Ke2 {[%clk 0:01:13]}  Ke7 {[%clk 0:00:09]} 53. Bd3 {[%clk 0:01:11]}  Ra5 {[%clk 0:00:08]} 54. Ke3 {[%clk 0:01:11]}  Rd5 {[%clk 0:00:09]} 55. Be4 {[%clk 0:01:11]}  Rd6 {[%clk 0:00:09]} 56. Rh7+ {[%clk 0:01:10]}  Kf6 {[%clk 0:00:09]} 57. Kf4 {[%clk 0:01:09]}  Ke6 {[%clk 0:00:10]} 58. Rh6+ {[%clk 0:01:09]}  Ke7 {[%clk 0:00:10]} 59. Rh5 {[%clk 0:01:06]}  Kf6 {[%clk 0:00:10]} 60. Rf5+ {[%clk 0:01:04]}  Ke6 {[%clk 0:00:11]} 61. Kg5 {[%clk 0:01:04]}  Rd4 {[%clk 0:00:11]} 62. Bc6 {[%clk 0:01:02]}  Rd1 {[%clk 0:00:11]} 63. Ra5 {[%clk 0:01:00]}  Rg1+ {[%clk 0:00:10]} 64. Kf4 {[%clk 0:01:00]}  Rd1 {[%clk 0:00:10]} 65. Be4 {[%clk 0:00:58]}  Rd6 {[%clk 0:00:10]} 66. Rg5 {[%clk 0:00:57]}  Kf6 {[%clk 0:00:10]} 67. Rg6+ {[%clk 0:00:56]}  Ke7 {[%clk 0:00:11]} 68. Rg7+ {[%clk 0:00:55]}  Kf6 {[%clk 0:00:11]} 69. Ra7 {[%clk 0:00:54]}  Re6 {[%clk 0:00:11]} 70. Bd5 {[%clk 0:00:53]}  Rd6 {[%clk 0:00:11]} 71. Ke4 {[%clk 0:00:52]}  Rb6 {[%clk 0:00:11]} 72. Rf7+ {[%clk 0:00:50]}  Kg6 {[%clk 0:00:11]} 73. Ke5 {[%clk 0:00:46]}  Rb2 {[%clk 0:00:10]} 74. Rd7 {[%clk 0:00:43]}  Rb5 {[%clk 0:00:09]} 75. Ra7 {[%clk 0:00:43]}  Rc5 {[%clk 0:00:09]} 76. Ra3 {[%clk 0:00:41]}  Rb5 {[%clk 0:00:07]} 77. Rg3+ {[%clk 0:00:41]}  Kh5 {[%clk 0:00:07]} 78. Rg1 {[%clk 0:00:41]}  Ra5 {[%clk 0:00:07]} 79. Rg7 {[%clk 0:00:40]}  Rb5 {[%clk 0:00:08]} 80. Ke4 {[%clk 0:00:38]}  Rb4+ {[%clk 0:00:07]} 81. Kf5 {[%clk 0:00:37]}  Kh4 {[%clk 0:00:07]} 82. Rg6 {[%clk 0:00:36]}  Rb5 {[%clk 0:00:06]} 83. Ke5 {[%clk 0:00:36]}  Kh5 {[%clk 0:00:05]} 84. Rf6 {[%clk 0:00:34]}  Ra5 {[%clk 0:00:06]} 85. Rf2 {[%clk 0:00:34]}  Kg5 {[%clk 0:00:05]} 86. Rg2+ {[%clk 0:00:33]}  Kh5 {[%clk 0:00:06]} 87. Rg8 {[%clk 0:00:32]}  Rb5 {[%clk 0:00:05]} 88. Kd6 {[%clk 0:00:29]}  Ra5 {[%clk 0:00:06]} 89. Bc6 {[%clk 0:00:28]}  Kh6 {[%clk 0:00:06]} 90. Be4 {[%clk 0:00:27]}  Kh5 {[%clk 0:00:05]} 91. Rg2 {[%clk 0:00:23]}  Ra6+ {[%clk 0:00:06]} 92. Ke5 {[%clk 0:00:22]}  Kh6 {[%clk 0:00:06]} 93. Kf4 {[%clk 0:00:22]}  Rf6+ {[%clk 0:00:05]} 94. Bf5 {[%clk 0:00:21]}  Ra6 {[%clk 0:00:05]} 95. Rh2+ {[%clk 0:00:17]}  Kg7 {[%clk 0:00:06]} 96. Rh7+ {[%clk 0:00:16]} 1/2-1/2

[Event "January 9 Late 2024"]
[Site "https://www.chess.com"]
[Date "2024.01.09"]
[Round "8"]
[White "Santos Latasa, Jaime"]
[Black "Rozman, Levy"]
[Result "1-0"]
[Board "33"]
[TimeControl "180+1"]
[WhiteFideId "2293307"]
[BlackFideId "2039877"]
[WhiteElo "2884"]
[BlackElo "2719"]
[WhiteTeam "ESP"]
[BlackTeam "USA"]
[WhiteClock "0:00:12"]
[BlackClock "0:00:00"]

1. Nf3 {[%clk 0:03:00]}  g6 {[%clk 0:02:59]} 2. d4 {[%clk 0:03:00]}  Bg7 {[%clk 0:02:59]} 3. c4 {[%clk 0:03:01]}  d6 {[%clk 0:03:00]} 4. Nc3 {[%clk 0:03:01]}  Bg4 {[%clk 0:03:00]} 5. e3 {[%clk 0:03:01]}  Nc6 {[%clk 0:03:00]} 6. Be2 {[%clk 0:03:01]}  Nf6 {[%clk 0:02:59]} 7. h3 {[%clk 0:03:00]}  Bd7 {[%clk 0:02:59]} 8. b3 {[%clk 0:02:59]}  O-O {[%clk 0:02:58]} 9. Bb2 {[%clk 0:02:56]}  e5 {[%clk 0:02:59]} 10. O-O {[%clk 0:02:50]}  Re8 {[%clk 0:02:53]} 11. dxe5 {[%clk 0:02:43]}  dxe5 {[%clk 0:02:47]} 12. Nd5 {[%clk 0:02:34]}  Bf5 {[%clk 0:02:29]} 13. Nd2 {[%clk 0:01:59]}  a5 {[%clk 0:02:04]} 14. a3 {[%clk 0:01:55]}  e4 {[%clk 0:01:56]} 15. Bxf6 {[%clk 0:01:42]}  Bxf6 {[%clk 0:01:55]} 16. Rb1 {[%clk 0:01:43]}  Bg7 {[%clk 0:01:46]} 17. Bg4 {[%clk 0:01:41]}  Bxg4 {[%clk 0:01:40]} 18. hxg4 {[%clk 0:01:41]}  Ne7 {[%clk 0:01:31]} 19. Nf4 {[%clk 0:01:34]}  Nc6 {[%clk 0:01:19]} 20. Qc2 {[%clk 0:01:28]}  Qh4 {[%clk 0:01:15]} 21. Nxe4 {[%clk 0:01:26]}  Qxg4 {[%clk 0:01:12]} 22. Nd2 {[%clk 0:01:13]}  Be5 {[%clk 0:01:04]} 23. Nd5 {[%clk 0:01:10]}  Ne7 {[%clk 0:00:56]} 24. Nf3 {[%clk 0:01:03]}  Nxd5 {[%clk 0:00:52]} 25. cxd5 {[%clk 0:01:04]}  Bd6 {[%clk 0:00:49]} 26. a4 {[%clk 0:00:59]}  Qh5 {[%clk 0:00:41]} 27. Rfd1 {[%clk 0:00:58]}  Re7 {[%clk 0:00:35]} 28. Rd4 {[%clk 0:00:53]}  Rae8 {[%clk 0:00:34]} 29. Rbd1 {[%clk 0:00:49]}  Qh6 {[%clk 0:00:25]} 30. Rc4 {[%clk 0:00:41]}  b6 {[%clk 0:00:23]} 31. Rdd4 {[%clk 0:00:32]}  Qg7 {[%clk 0:00:22]} 32. Rd1 {[%clk 0:00:29]}  Qf6 {[%clk 0:00:18]} 33. Kf1 {[%clk 0:00:28]}  Bb4 {[%clk 0:00:14]} 34. Rxc7 {[%clk 0:00:23]}  Rd8 {[%clk 0:00:06]} 35. Rxe7 {[%clk 0:00:21]}  Qxe7 {[%clk 0:00:07]} 36. e4 {[%clk 0:00:19]}  Bc5 {[%clk 0:00:04]} 37. Nd4 {[%clk 0:00:17]}  Qf6 {[%clk 0:00:05]} 38. Nc6 {[%clk 0:00:16]}  Re8 {[%clk 0:00:05]} 39. e5 {[%clk 0:00:15]}  Qf4 {[%clk 0:00:05]} 40. d6 {[%clk 0:00:13]}  Qh2 {[%clk 0:00:04]} 41. Qe4 {[%clk 0:00:13]}  f6 {[%clk 0:00:03]} 42. d7 {[%clk 0:00:12]}  Qh1+ {[%clk 0:00:01]} 43. Ke2 {[%clk 0:00:12]}  Qh5+ {[%clk 0:00:00]} 44. g4 {[%clk 0:00:12]} 1-0

[Event "January 9 Late 2024"]
[Site "https://www.chess.com"]
[Date "2024.01.09"]
[Round "8"]
[White "Goryachkina, Aleksandra"]
[Black "Beerdsen, Thomas"]
[Result "0-1"]
[Board "36"]
[TimeControl "180+1"]
[WhiteFideId "4147103"]
[BlackFideId "1030108"]
[WhiteElo "2660"]
[BlackElo "2855"]
[WhiteTeam "FID"]
[BlackTeam "NED"]
[WhiteClock "0:00:00"]
[BlackClock "0:01:00"]

1. e4 {[%clk 0:03:00]}  e5 {[%clk 0:03:00]} 2. Nf3 {[%clk 0:03:00]}  Nc6 {[%clk 0:03:01]} 3. Bc4 {[%clk 0:02:59]}  Nf6 {[%clk 0:03:00]} 4. d3 {[%clk 0:03:00]}  h6 {[%clk 0:03:01]} 5. c3 {[%clk 0:02:59]}  d6 {[%clk 0:03:02]} 6. O-O {[%clk 0:02:53]}  g5 {[%clk 0:03:02]} 7. d4 {[%clk 0:02:50]}  g4 {[%clk 0:03:02]} 8. Nfd2 {[%clk 0:02:43]}  exd4 {[%clk 0:03:01]} 9. cxd4 {[%clk 0:02:42]}  Nxd4 {[%clk 0:03:02]} 10. Re1 {[%clk 0:02:22]}  Bg7 {[%clk 0:03:00]} 11. Nf1 {[%clk 0:02:14]}  c5 {[%clk 0:02:55]} 12. Be3 {[%clk 0:02:09]}  Nc6 {[%clk 0:02:53]} 13. Nc3 {[%clk 0:02:08]}  O-O {[%clk 0:02:52]} 14. Ng3 {[%clk 0:02:08]}  Be6 {[%clk 0:02:50]} 15. Nd5 {[%clk 0:01:55]}  Ne5 {[%clk 0:02:48]} 16. b3 {[%clk 0:01:48]}  Bxd5 {[%clk 0:02:38]} 17. Bxd5 {[%clk 0:01:44]}  Nxd5 {[%clk 0:02:31]} 18. Qxd5 {[%clk 0:01:42]}  Qf6 {[%clk 0:02:31]} 19. Rad1 {[%clk 0:01:41]}  Rad8 {[%clk 0:02:25]} 20. Qxb7 {[%clk 0:01:41]}  a5 {[%clk 0:02:23]} 21. Qa6 {[%clk 0:01:34]}  a4 {[%clk 0:02:20]} 22. Nh5 {[%clk 0:01:04]}  Qg6 {[%clk 0:02:18]} 23. Nf4 {[%clk 0:01:03]}  Qxe4 {[%clk 0:02:17]} 24. Nd5 {[%clk 0:00:53]}  Kh7 {[%clk 0:02:13]} 25. Bxc5 {[%clk 0:00:35]}  Qg6 {[%clk 0:02:12]} 26. Nf4 {[%clk 0:00:32]}  Qf5 {[%clk 0:02:08]} 27. Be3 {[%clk 0:00:31]}  axb3 {[%clk 0:02:09]} 28. axb3 {[%clk 0:00:31]}  Qf6 {[%clk 0:01:44]} 29. Nd5 {[%clk 0:00:26]}  Qg6 {[%clk 0:01:44]} 30. Nf4 {[%clk 0:00:26]}  Qf6 {[%clk 0:01:44]} 31. Nd5 {[%clk 0:00:26]}  Qf5 {[%clk 0:01:43]} 32. Nf4 {[%clk 0:00:26]}  d5 {[%clk 0:01:43]} 33. Rxd5 {[%clk 0:00:15]}  Rxd5 {[%clk 0:01:37]} 34. Nxd5 {[%clk 0:00:15]}  Nf3+ {[%clk 0:01:34]} 35. gxf3 {[%clk 0:00:14]}  Qxd5 {[%clk 0:01:35]} 36. fxg4 {[%clk 0:00:13]}  Qxb3 {[%clk 0:01:36]} 37. Qa5 {[%clk 0:00:10]}  f5 {[%clk 0:01:34]} 38. Qc5 {[%clk 0:00:05]}  Qa4 {[%clk 0:01:29]} 39. gxf5 {[%clk 0:00:03]}  Qg4+ {[%clk 0:01:29]} 40. Kf1 {[%clk 0:00:04]}  Qh3+ {[%clk 0:01:29]} 41. Ke2 {[%clk 0:00:04]}  Qh5+ {[%clk 0:01:29]} 42. Kf1 {[%clk 0:00:04]}  Rxf5 {[%clk 0:01:28]} 43. Qc2 {[%clk 0:00:04]}  Qh3+ {[%clk 0:01:26]} 44. Ke2 {[%clk 0:00:04]}  Qf3+ {[%clk 0:01:25]} 45. Kf1 {[%clk 0:00:04]}  Kh8 {[%clk 0:01:23]} 46. Qc8+ {[%clk 0:00:01]}  Rf8 {[%clk 0:01:24]} 47. Qc4 {[%clk 0:00:02]}  Qh3+ {[%clk 0:01:20]} 48. Ke2 {[%clk 0:00:02]}  Qh5+ {[%clk 0:01:20]} 49. Kf1 {[%clk 0:00:02]}  Qxh2 {[%clk 0:01:21]} 50. Ke2 {[%clk 0:00:02]}  Qh5+ {[%clk 0:01:21]} 51. Kf1 {[%clk 0:00:02]}  Qf3 {[%clk 0:01:22]} 52. Qd3 {[%clk 0:00:01]}  Qh3+ {[%clk 0:01:21]} 53. Ke2 {[%clk 0:00:01]}  Qf3+ {[%clk 0:01:20]} 54. Kf1 {[%clk 0:00:02]}  Rf7 {[%clk 0:01:19]} 55. Qc4 {[%clk 0:00:02]}  Qh3+ {[%clk 0:01:17]} 56. Ke2 {[%clk 0:00:02]}  Qh5+ {[%clk 0:01:17]} 57. Kf1 {[%clk 0:00:02]}  Qf3 {[%clk 0:01:18]} 58. Qd3 {[%clk 0:00:02]}  h5 {[%clk 0:01:15]} 59. Qc4 {[%clk 0:00:02]}  Qh3+ {[%clk 0:01:11]} 60. Ke2 {[%clk 0:00:02]}  Qf3+ {[%clk 0:01:12]} 61. Kf1 {[%clk 0:00:02]}  Rf5 {[%clk 0:01:13]} 62. Qc8+ {[%clk 0:00:02]}  Kh7 {[%clk 0:01:13]} 63. Qc2 {[%clk 0:00:03]}  h4 {[%clk 0:01:11]} 64. Rd1 {[%clk 0:00:02]}  Qh3+ {[%clk 0:01:09]} 65. Ke2 {[%clk 0:00:01]}  Qf3+ {[%clk 0:01:09]} 66. Kf1 {[%clk 0:00:02]}  h3 {[%clk 0:01:10]} 67. Rd7 {[%clk 0:00:02]}  h2 {[%clk 0:01:09]} 68. Rxg7+ {[%clk 0:00:02]}  Kxg7 {[%clk 0:01:09]} 69. Qc7+ {[%clk 0:00:02]}  Kg6 {[%clk 0:01:04]} 70. Qxh2 {[%clk 0:00:02]}  Qxe3 {[%clk 0:01:05]} 71. Qd6+ {[%clk 0:00:01]}  Kh5 {[%clk 0:01:01]} 72. Qh2+ {[%clk 0:00:01]}  Kg5 {[%clk 0:00:59]} 73. Qg2+ {[%clk 0:00:01]}  Kf6 {[%clk 0:00:59]} 74. Qc6+ {[%clk 0:00:00]}  Qe6 {[%clk 0:01:00]} 0-1